fUSD/lending_fUSD_20240425
["ID","MTS","AMOUNT","RATE_DAILY","PERIOD"]
[323569259,1714087862804,-652.41,0.00011506,2]
[323569260,1714087862814,-500.0,0.00011506,2]
[323569261,1714087862823,-500.0,0.00011506,2]
[323569262,1714087862833,-500.0,0.00011506,2]
[323569263,1714087862842,-500.0,0.00011506,2]
[323569264,1714087862851,-500.0,0.00011506,2]
[323569265,1714087862861,-1165.67,0.00011506,2]
[323569266,1714087862870,-500.0,0.00011506,2]
[323569267,1714087862880,-500.0,0.00011506,2]
[323569268,1714087862890,-500.0,0.00011506,2]
[323569269,1714087862900,-500.0,0.00011506,2]
[323569270,1714087862909,-500.0,0.00011506,2]
[323569271,1714087862918,-500.0,0.00011506,2]
[323569272,1714087862927,-655.71,0.00011506,2]
[323569273,1714087862937,-500.0,0.00011506,2]
[323569274,1714087862946,-667.63,0.00011506,2]
[323569275,1714087862955,-500.0,0.00011506,2]
[323569276,1714087862964,-500.0,0.00011506,2]
[323569277,1714087862973,-500.0,0.00011506,2]
[323569278,1714087862982,-958.55,0.00011506,2]
[323569279,1714087862992,-500.0,0.00011506,2]
[323569280,1714087863001,-500.0,0.00011506,2]
[323569281,1714087863011,-500.0,0.00011506,2]
[323569282,1714087863022,-500.0,0.00011506,2]
[323569283,1714087863031,-721.74,0.00011506,2]
[323569284,1714087863041,-500.0,0.00011506,2]
[323569285,1714087863049,-610.41,0.00011506,2]
[323569286,1714087863058,-500.0,0.00011506,2]
[323569287,1714087863067,-500.0,0.00011506,2]
[323569288,1714087863077,-500.0,0.00011506,2]
[323569289,1714087863086,-500.0,0.00011506,2]
[323569290,1714087863096,-500.0,0.00011506,2]
[323569291,1714087863105,-500.0,0.00011506,2]
[323569292,1714087863114,-500.0,0.00011506,2]
[323569293,1714087863123,-500.0,0.00011506,2]
[323569294,1714087863133,-500.0,0.00011506,2]
[323569295,1714087863142,-500.0,0.00011506,2]
[323569296,1714087863151,-500.0,0.00011506,2]
[323569297,1714087863160,-500.0,0.00011506,2]
[323569298,1714087863169,-1053.7,0.00011506,2]
[323569299,1714087863179,-731.88,0.00011506,2]
[323569300,1714087863188,-500.0,0.00011506,2]
[323569301,1714087863197,-500.0,0.00011506,2]
[323569302,1714087863207,-392.19895792,0.00011506,2]
[323569303,1714087863216,-1325.63,0.00011506,2]
[323569304,1714087863225,-500.0,0.00011506,2]
[323569305,1714087863234,-500.0,0.00011506,2]
[323569306,1714087863244,-500.0,0.00011506,2]
[323569307,1714087863253,-527.58,0.00011506,2]
[323569308,1714087863262,-500.0,0.00011506,2]
[323569309,1714087863273,-500.0,0.00011506,2]
[323569310,1714087863283,-500.0,0.00011506,2]
[323569311,1714087863292,-1450.6,0.00011506,2]
[323569312,1714087863302,-500.0,0.00011506,2]
[323569313,1714087863311,-500.0,0.00011506,2]
[323569314,1714087863392,-500.0,0.00011506,2]
[323569315,1714087863402,-500.0,0.00011506,2]
[323569316,1714087863411,-500.0,0.00011506,2]
[323569317,1714087863421,-500.0,0.00011506,2]
[323569318,1714087863430,-500.0,0.00011506,2]
[323569319,1714087863439,-500.0,0.00011506,2]
[323569320,1714087863449,-500.0,0.00011506,2]
[323569321,1714087863458,-692.16,0.00011506,2]
[323569322,1714087863467,-500.0,0.00011506,2]
[323569323,1714087863476,-500.0,0.00011506,2]
[323569324,1714087863485,-822.24,0.00011506,2]
[323569325,1714087863494,-500.0,0.00011506,2]
[323569326,1714087863503,-500.0,0.00011506,2]
[323569327,1714087863512,-500.0,0.00011506,2]
[323569328,1714087863524,-500.0,0.00011506,2]
[323569329,1714087863533,-719.65,0.00011506,2]
[323569330,1714087863542,-724.38,0.00011506,2]
[323569331,1714087863552,-500.0,0.00011506,2]
[323569332,1714087863561,-1149.04,0.00011506,2]
[323569333,1714087863570,-500.0,0.00011506,2]
[323569334,1714087863579,-500.0,0.00011506,2]
[323569335,1714087863589,-500.0,0.00011506,2]
[323569336,1714087863597,-500.0,0.00011506,2]
[323569337,1714087863607,-500.0,0.00011506,2]
[323569338,1714087863617,-500.0,0.00011506,2]
[323569339,1714087863626,-500.0,0.00011506,2]
[323569340,1714087863635,-500.0,0.00011506,2]
[323569341,1714087863645,-500.0,0.00011506,2]
[323569342,1714087863654,-500.0,0.00011506,2]
[323569343,1714087863662,-500.0,0.00011506,2]
[323569344,1714087863672,-500.0,0.00011506,2]
[323569345,1714087863681,-920.54,0.00011506,2]
[323569346,1714087863693,-500.0,0.00011506,2]
[323569347,1714087863702,-500.0,0.00011506,2]
[323569348,1714087863712,-500.0,0.00011506,2]
[323569349,1714087863722,-1156.86,0.00011506,2]
[323569350,1714087863731,-424.18,0.00011506,2]
[323569351,1714087863741,-500.0,0.00011506,2]
[323569352,1714087863750,-500.0,0.00011506,2]
[323569353,1714087863759,-500.0,0.00011506,2]
[323569354,1714087863770,-705.04,0.00011506,2]
[323569355,1714087863779,-500.0,0.00011506,2]
[323569356,1714087863789,-500.0,0.00011506,2]
[323569357,1714087863799,-762.49,0.00011506,2]
[323569358,1714087863808,-500.0,0.00011506,2]
[323569359,1714087863819,-777.97,0.00011506,2]
[323569360,1714087863829,-500.0,0.00011506,2]
[323569361,1714087863839,-552.69,0.00011506,2]
[323569362,1714087863850,-500.0,0.00011506,2]
[323569363,1714087863859,-558.73,0.00011506,2]
[323569364,1714087863869,-500.0,0.00011506,2]
[323569365,1714087863878,-500.0,0.00011506,2]
[323569366,1714087863887,-500.0,0.00011506,2]
[323569367,1714087863897,-500.0,0.00011506,2]
[323569368,1714087863906,-500.0,0.00011506,2]
[323569369,1714087863917,-878.34,0.00011506,2]
[323569370,1714087863926,-524.69,0.00011506,2]
[323569371,1714087863937,-500.0,0.00011506,2]
[323569372,1714087863946,-838.26,0.00011506,2]
[323569373,1714087863956,-500.0,0.00011506,2]
[323569374,1714087863966,-654.37,0.00011506,2]
[323569375,1714087863975,-685.74,0.00011506,2]
[323569376,1714087863984,-500.0,0.00011506,2]
[323569377,1714087863993,-500.0,0.00011506,2]
[323569378,1714087864003,-500.0,0.00011506,2]
[323569379,1714087864012,-500.0,0.00011506,2]
[323569380,1714087864023,-500.0,0.00011506,2]
[323569381,1714087864032,-500.0,0.00011506,2]
[323569382,1714087864042,-500.0,0.00011506,2]
[323569383,1714087864051,-500.0,0.00011506,2]
[323569384,1714087864061,-500.0,0.00011506,2]
[323569385,1714087864070,-500.0,0.00011506,2]
[323569386,1714087864079,-500.0,0.00011506,2]
[323569387,1714087864088,-500.0,0.00011506,2]
[323569388,1714087864098,-500.0,0.00011506,2]
[323569389,1714087864107,-500.0,0.00011506,2]
[323569390,1714087864116,-500.0,0.00011506,2]
[323569391,1714087864125,-205.79,0.00011506,2]
[323569392,1714087864136,-500.0,0.00011506,2]
[323569393,1714087864145,-500.0,0.00011506,2]
[323569394,1714087864155,-500.0,0.00011506,2]
[323569395,1714087864166,-500.0,0.00011506,2]
[323569396,1714087864175,-599.0,0.00011506,2]
[323569397,1714087864184,-1004.57,0.00011506,2]
[323569398,1714087864194,-500.0,0.00011506,2]
[323569399,1714087864203,-500.0,0.00011506,2]
[323569400,1714087864212,-738.39,0.00011506,2]
[323569401,1714087864221,-578.52,0.00011506,2]
[323569402,1714087864230,-525.23,0.00011506,2]
[323569403,1714087864240,-500.0,0.00011506,2]
[323569404,1714087864249,-500.0,0.00011506,2]
[323569405,1714087864259,-500.0,0.00011506,2]
[323569406,1714087864269,-500.0,0.00011506,2]
[323569407,1714087864278,-1060.74,0.00011506,2]
[323569408,1714087864287,-500.0,0.00011506,2]
[323569409,1714087864296,-500.0,0.00011506,2]
[323569410,1714087864305,-500.0,0.00011506,2]
[323569411,1714087864314,-555.99,0.00011506,2]
[323569412,1714087864323,-592.48,0.00011506,2]
[323569413,1714087864332,-500.0,0.00011506,2]
[323569414,1714087864341,-500.0,0.00011506,2]
[323569415,1714087864350,-1211.54,0.00011506,2]
[323569416,1714087864358,-500.0,0.00011506,2]
[323569417,1714087864368,-846.63,0.00011506,2]
[323569418,1714087864377,-500.0,0.00011506,2]
[323569419,1714087864385,-500.0,0.00011506,2]
[323569420,1714087864394,-1099.19,0.00011506,2]
[323569421,1714087864404,-532.55,0.00011506,2]
[323569422,1714087864413,-603.27,0.00011506,2]
[323569423,1714087864422,-609.37,0.00011506,2]
[323569424,1714087864431,-500.0,0.00011506,2]
[323569425,1714087864441,-500.0,0.00011506,2]
[323569426,1714087864450,-500.0,0.00011506,2]
[323569427,1714087864458,-1504.06,0.00011506,2]
[323569428,1714087864467,-500.0,0.00011506,2]
[323569429,1714087864476,-500.0,0.00011506,2]
[323569430,1714087864485,-500.0,0.00011506,2]
[323569431,1714087864494,-500.0,0.00011506,2]
[323569432,1714087864503,-2740.94,0.00011506,2]
[323569433,1714087864512,-500.0,0.00011506,2]
[323569434,1714087864522,-500.0,0.00011506,2]
[323569435,1714087864531,-500.0,0.00011506,2]
[323569436,1714087864540,-500.0,0.00011506,2]
[323569437,1714087864549,-500.0,0.00011506,2]
[323569438,1714087864558,-818.25,0.00011506,2]
[323569439,1714087864567,-500.0,0.00011506,2]
[323569440,1714087864576,-1524.12,0.00011506,2]
[323569441,1714087864586,-500.0,0.00011506,2]
[323569442,1714087864595,-500.0,0.00011506,2]
[323569443,1714087864604,-500.0,0.00011506,2]
[323569444,1714087864613,-18436.82,0.00011506,2]
[323569445,1714087864622,-5858.12,0.00011506,2]
[323569446,1714087864631,-3337.11,0.00011506,2]
[323569447,1714087864640,-532.55,0.00011506,2]
[323569448,1714087864650,-505.25,0.00011506,2]
[323569449,1714087864659,-500.0,0.00011506,2]
[323569450,1714087864667,-500.0,0.00011506,2]
[323569451,1714087864677,-500.0,0.00011506,2]
[323569452,1714087864689,-500.0,0.00011506,2]
[323569453,1714087864698,-525.8,0.00011506,2]
[323569454,1714087864708,-1231.02,0.00011506,2]
[323569455,1714087864717,-9353.43,0.00011506,2]
[323569456,1714087864727,-500.0,0.00011506,2]
[323569457,1714087864736,-1390.69,0.00011506,2]
[323569458,1714087864745,-500.0,0.00011506,2]
[323569459,1714087864755,-500.0,0.00011506,2]
[323569460,1714087864766,-500.0,0.00011506,2]
[323569461,1714087864775,-500.0,0.00011506,2]
[323569462,1714087864784,-958.7,0.00011506,2]
[323569463,1714087864795,-500.0,0.00011506,2]
[323569464,1714087864804,-607.04,0.00011506,2]
[323569465,1714087864814,-785.72,0.00011506,2]
[323569466,1714087864823,-500.0,0.00011506,2]
[323569467,1714087864833,-1116.69,0.00011506,2]
[323569468,1714087864842,-1613.99,0.00011506,2]
[323569469,1714087864851,-500.0,0.00011506,2]
[323569470,1714087864860,-500.0,0.00011506,2]
[323569471,1714087864869,-500.0,0.00011506,2]
[323569472,1714087864879,-500.0,0.00011506,2]
[323569473,1714087864889,-1682.67,0.00011506,2]
[323569474,1714087864899,-500.0,0.00011506,2]
[323569475,1714087864908,-500.0,0.00011506,2]
[323569476,1714087864917,-500.0,0.00011506,2]
[323569477,1714087864927,-640.06,0.00011506,2]
[323569478,1714087864936,-500.0,0.00011506,2]
[323569479,1714087864946,-500.0,0.00011506,2]
[323569480,1714087864955,-2933.51,0.00011506,2]
[323569481,1714087864964,-500.0,0.00011506,2]
[323569482,1714087864973,-500.0,0.00011506,2]
[323569483,1714087864983,-500.0,0.00011506,2]
[323569484,1714087864992,-500.0,0.00011506,2]
[323569485,1714087865002,-1171.7,0.00011506,2]
[323569486,1714087865010,-500.0,0.00011506,2]
[323569487,1714087865021,-500.0,0.00011506,2]
[323569488,1714087865030,-1041.08,0.00011506,2]
[323569489,1714087865039,-500.0,0.00011506,2]
[323569490,1714087865048,-500.0,0.00011506,2]
[323569491,1714087865058,-500.0,0.00011506,2]
[323569492,1714087865067,-500.0,0.00011506,2]
[323569493,1714087865076,-1269.64,0.00011506,2]
[323569494,1714087865085,-500.0,0.00011506,2]
[323569495,1714087865094,-500.0,0.00011506,2]
[323569496,1714087865103,-500.0,0.00011506,2]
[323569497,1714087865113,-500.0,0.00011506,2]
[323569498,1714087865122,-500.0,0.00011506,2]
[323569499,1714087865131,-1461.68,0.00011506,2]
[323569500,1714087865140,-577.04,0.00011506,2]
[323569501,1714087865149,-814.56,0.00011506,2]
[323569502,1714087865158,-531.83,0.00011506,2]
[323569503,1714087865167,-500.0,0.00011506,2]
[323569504,1714087865176,-500.0,0.00011506,2]
[323569505,1714087865185,-716.73,0.00011506,2]
[323569506,1714087865194,-500.0,0.00011506,2]
[323569507,1714087865203,-500.0,0.00011506,2]
[323569508,1714087865213,-2006.59,0.00011506,2]
[323569509,1714087865222,-6295.45,0.00011506,2]
[323569510,1714087865231,-500.0,0.00011506,2]
[323569511,1714087865240,-500.0,0.00011506,2]
[323569512,1714087865250,-500.0,0.00011506,2]
[323569513,1714087865259,-1898.53,0.00011506,2]
[323569514,1714087865269,-507.61,0.00011506,2]
[323569515,1714087865278,-764.83,0.00011506,2]
[323569516,1714087865287,-500.0,0.00011506,2]
[323569517,1714087865297,-500.0,0.00011506,2]
[323569518,1714087865306,-500.0,0.00011506,2]
[323569519,1714087865316,-970.93,0.00011506,2]
[323569520,1714087865325,-500.0,0.00011506,2]
[323569521,1714087865334,-500.0,0.00011506,2]
[323569522,1714087865343,-1231.83,0.00011506,2]
[323569523,1714087865353,-500.0,0.00011506,2]
[323569524,1714087865362,-503.75,0.00011506,2]
[323569525,1714087865371,-500.0,0.00011506,2]
[323569526,1714087865380,-1057.21,0.00011506,2]
[323569527,1714087865389,-500.0,0.00011506,2]
[323569528,1714087865398,-17729.1,0.00011506,2]
[323569529,1714087865408,-500.0,0.00011506,2]
[323569530,1714087865417,-3191.64,0.00011506,2]
[323569531,1714087865427,-932.44,0.00011506,2]
[323569532,1714087865436,-500.0,0.00011506,2]
[323569533,1714087865446,-500.0,0.00011506,2]
[323569534,1714087865455,-500.0,0.00011506,2]
[323569535,1714087865464,-500.0,0.00011506,2]
[323569536,1714087865474,-500.0,0.00011506,2]
[323569537,1714087865483,-500.0,0.00011506,2]
[323569538,1714087865492,-1393.76,0.00011506,2]
[323569539,1714087865501,-500.0,0.00011506,2]
[323569540,1714087865510,-500.0,0.00011506,2]
[323569541,1714087865520,-500.0,0.00011506,2]
[323569542,1714087865529,-1797.67,0.00011506,2]
[323569543,1714087865537,-2894.38,0.00011506,2]
[323569544,1714087865546,-685.61,0.00011506,2]
[323569545,1714087865556,-500.0,0.00011506,2]
[323569546,1714087865565,-500.0,0.00011506,2]
[323569547,1714087865575,-596.95,0.00011506,2]
[323569548,1714087865584,-500.0,0.00011506,2]
[323569549,1714087865593,-625.31,0.00011506,2]
[323569550,1714087865602,-500.0,0.00011506,2]
[323569551,1714087865611,-500.0,0.00011506,2]
[323569552,1714087865620,-500.0,0.00011506,2]
[323569553,1714087865630,-500.0,0.00011506,2]
[323569554,1714087865639,-581.39,0.00011506,2]
[323569555,1714087865647,-1093.84,0.00011506,2]
[323569556,1714087865656,-500.0,0.00011506,2]
[323569557,1714087865665,-951.66,0.00011506,2]
[323569558,1714087865675,-500.0,0.00011506,2]
[323569559,1714087865687,-500.0,0.00011506,2]
[323569560,1714087865696,-500.0,0.00011506,2]
[323569561,1714087865706,-500.0,0.00011506,2]
[323569562,1714087865716,-500.0,0.00011506,2]
[323569563,1714087865726,-996.23,0.00011506,2]
[323569564,1714087865736,-500.0,0.00011506,2]
[323569565,1714087865745,-610.02,0.00011506,2]
[323569566,1714087865756,-500.0,0.00011506,2]
[323569567,1714087865766,-500.0,0.00011506,2]
[323569568,1714087865778,-500.0,0.00011506,2]
[323569569,1714087865788,-500.0,0.00011506,2]
[323569570,1714087865797,-500.0,0.00011506,2]
[323569571,1714087865807,-500.0,0.00011506,2]
[323569572,1714087865817,-678.85,0.00011506,2]
[323569573,1714087865826,-1932.77,0.00011506,2]
[323569574,1714087865834,-402.38132628,0.00011506,2]
[323569575,1714087865842,-500.0,0.00011506,2]
[323569576,1714087865852,-500.0,0.00011506,2]
[323569577,1714087865862,-500.0,0.00011506,2]
[323569578,1714087865871,-586.92,0.00011506,2]
[323569579,1714087865881,-972.5,0.00011506,2]
[323569580,1714087865891,-8383.29,0.00011506,2]
[323569581,1714087865900,-500.0,0.00011506,2]
[323569582,1714087865910,-500.0,0.00011506,2]
[323569583,1714087865920,-734.55,0.00011506,2]
[323569584,1714087865930,-500.0,0.00011506,2]
[323569585,1714087865939,-3544.9,0.00011506,2]
[323569586,1714087865949,-707.12,0.00011506,2]
[323569587,1714087865958,-500.0,0.00011506,2]
[323569588,1714087865968,-545.24,0.00011506,2]
[323569589,1714087865978,-500.0,0.00011506,2]
[323569590,1714087865987,-1195.08,0.00011506,2]
[323569591,1714087865997,-500.0,0.00011506,2]
[323569592,1714087866006,-500.0,0.00011506,2]
[323569593,1714087866016,-500.0,0.00011506,2]
[323569594,1714087866027,-500.0,0.00011506,2]
[323569595,1714087866037,-690.24,0.00011506,2]
[323569596,1714087866047,-500.0,0.00011506,2]
[323569597,1714087866056,-554.5,0.00011506,2]
[323569598,1714087866066,-500.0,0.00011506,2]
[323569599,1714087866076,-500.0,0.00011506,2]
[323569600,1714087866085,-500.0,0.00011506,2]
[323569601,1714087866096,-500.0,0.00011506,2]
[323569602,1714087866106,-4672.05,0.00011506,2]
[323569603,1714087866115,-500.0,0.00011506,2]
[323569604,1714087866125,-540.18,0.00011506,2]
[323569605,1714087866134,-500.0,0.00011506,2]
[323569606,1714087866144,-500.0,0.00011506,2]
[323569607,1714087866154,-970.32,0.00011506,2]
[323569608,1714087866163,-3459.18762257,0.00011506,2]
[323569609,1714087866824,-5.68237743,0.00011506,2]
[323569610,1714087866834,-500.0,0.00011506,2]
[323569611,1714087866844,-5299.98,0.00011506,2]
[323569612,1714087866854,-500.0,0.00011506,2]
[323569613,1714087866864,-500.0,0.00011506,2]
[323569614,1714087866873,-1894.72,0.00011506,2]
[323569615,1714087866883,-500.0,0.00011506,2]
[323569616,1714087866892,-500.0,0.00011506,2]
[323569617,1714087866902,-572.75,0.00011506,2]
[323569618,1714087866912,-1092.74,0.00011506,2]
[323569619,1714087866922,-749.4,0.00011506,2]
[323569620,1714087866932,-500.0,0.00011506,2]
[323569621,1714087866942,-364.05420359,0.00011506,2]
[323569622,1714087866952,-500.0,0.00011506,2]
[323569623,1714087866962,-500.0,0.00011506,2]
[323569624,1714087866972,-507.01,0.00011506,2]
[323569625,1714087866981,-500.0,0.00011506,2]
[323569626,1714087866991,-1615.31,0.00011506,2]
[323569627,1714087867001,-500.0,0.00011506,2]
[323569628,1714087867011,-500.0,0.00011506,2]
[323569629,1714087867022,-3926.02,0.00011506,2]
[323569630,1714087867032,-500.0,0.00011506,2]
[323569631,1714087867042,-605.77,0.00011506,2]
[323569632,1714087867052,-1013.07,0.00011506,2]
[323569633,1714087867062,-1038.07,0.00011506,2]
[323569634,1714087867071,-1406.82,0.00011506,2]
[323569635,1714087867082,-500.0,0.00011506,2]
[323569636,1714087867091,-701.26,0.00011506,2]
[323569637,1714087867101,-500.0,0.00011506,2]
[323569638,1714087867112,-500.0,0.00011506,2]
[323569639,1714087867121,-500.0,0.00011506,2]
[323569640,1714087867131,-500.0,0.00011506,2]
[323569641,1714087867141,-577.47,0.00011506,2]
[323569642,1714087867150,-860.6,0.00011506,2]
[323569643,1714087867160,-1401.53,0.00011506,2]
[323569644,1714087867170,-683.85,0.00011506,2]
[323569645,1714087867426,-500.0,0.00011506,2]
[323569646,1714087867437,-549.58,0.00011506,2]
[323569647,1714087867446,-500.0,0.00011506,2]
[323569648,1714087867456,-1187.74,0.00011506,2]
[323569649,1714087867465,-500.0,0.00011506,2]
[323569650,1714087867476,-2010.41,0.00011506,2]
[323569651,1714087867485,-1782.53,0.00011506,2]
[323569652,1714087867495,-917.5,0.00011506,2]
[323569653,1714087867507,-796.52,0.00011506,2]
[323569654,1714087867518,-500.0,0.00011506,2]
[323569655,1714087867529,-500.0,0.00011506,2]
[323569656,1714087867539,-1204.82,0.00011506,2]
[323569657,1714087867549,-500.0,0.00011506,2]
[323569658,1714087867559,-500.0,0.00011506,2]
[323569659,1714087867569,-500.0,0.00011506,2]
[323569660,1714087867578,-500.0,0.00011506,2]
[323569661,1714087867587,-1716.12,0.00011506,2]
[323569662,1714087867598,-500.0,0.00011506,2]
[323569663,1714087867607,-710.34,0.00011506,2]
[323569664,1714087867618,-500.0,0.00011506,2]
[323569665,1714087867627,-792.09,0.00011506,2]
[323569666,1714087867637,-500.0,0.00011506,2]
[323569667,1714087867647,-542.94,0.00011506,2]
[323569668,1714087867656,-3357.68,0.00011506,2]
[323569669,1714087867665,-500.0,0.00011506,2]
[323569670,1714087867675,-500.0,0.00011506,2]
[323569671,1714087867687,-2748.61,0.00011506,2]
[323569672,1714087867696,-2200.4,0.00011506,2]
[323569673,1714087867705,-500.0,0.00011506,2]
[323569674,1714087867714,-500.0,0.00011506,2]
[323569675,1714087867723,-518.41867004,0.00011506,2]
[323569676,1714087867733,-500.0,0.00011506,2]
[323569677,1714087867743,-706.0,0.00011506,2]
[323569678,1714087867752,-647.56,0.00011506,2]
[323569679,1714087867762,-500.0,0.00011506,2]
[323569680,1714087867772,-500.0,0.00011506,2]
[323569681,1714087867782,-500.0,0.00011506,2]
[323569682,1714087867791,-500.0,0.00011506,2]
[323569683,1714087867801,-1319.76,0.00011506,2]
[323569684,1714087867810,-500.0,0.00011506,2]
[323569685,1714087867819,-4069.1,0.00011506,2]
[323569686,1714087867830,-500.0,0.00011506,2]
[323569687,1714087867839,-629.06,0.00011506,2]
[323569688,1714087867850,-500.0,0.00011506,2]
[323569689,1714087867859,-541.43,0.00011506,2]
[323569690,1714087867869,-500.0,0.00011506,2]
[323569691,1714087867878,-500.0,0.00011506,2]
[323569692,1714087867887,-4179.55,0.00011506,2]
[323569693,1714087867897,-1360.31,0.00011506,2]
[323569694,1714087867906,-2811.0,0.00011506,2]
[323569695,1714087867916,-500.0,0.00011506,2]
[323569696,1714087867926,-500.0,0.00011506,2]
[323569697,1714087867935,-500.0,0.00011506,2]
[323569698,1714087867944,-500.0,0.00011506,2]
[323569699,1714087867953,-500.0,0.00011506,2]
[323569700,1714087867962,-500.0,0.00011506,2]
[323569701,1714087867972,-345.0,0.0001151,2]
[323569702,1714087867981,-500.0,0.00011593,2]
[323569703,1714087867991,-500.0,0.00011593,2]
[323569704,1714087868001,-500.0,0.00011593,2]
[323569705,1714087868010,-500.0,0.00011593,2]
[323569706,1714087868019,-500.0,0.00011593,2]
[323569707,1714087868029,-500.0,0.00011593,2]
[323569708,1714087868038,-500.0,0.00011593,2]
[323569709,1714087868047,-500.0,0.00011593,2]
[323569710,1714087868057,-3167.66022678,0.00011613,2]
[323569711,1714087868066,-345.0,0.0001165,2]
[323569712,1714087868075,-343.61076514,0.0001168,2]
[323569713,1714087868084,-1000.0,0.00011686,2]
[323569714,1714087868094,-3167.66022678,0.00011774,2]
[323569715,1714087868103,-500.0,0.0001178,2]
[323569716,1714087868112,-1018.66,0.0001178,2]
[323569717,1714087868121,-525.95,0.0001178,2]
[323569718,1714087868130,-500.0,0.0001178,2]
[323569719,1714087868140,-500.0,0.0001178,2]
[323569720,1714087868149,-500.0,0.0001178,2]
[323569721,1714087868158,-312.21385719,0.0001178,2]
[323569722,1714087868169,-500.0,0.0001178,2]
[323569723,1714087868179,-500.0,0.0001178,2]
[323569724,1714087868188,-500.0,0.0001178,2]
[323569725,1714087868199,-500.0,0.0001178,2]
[323569726,1714087868210,-500.0,0.0001178,2]
[323569727,1714087868220,-500.0,0.0001178,2]
[323569728,1714087868230,-500.0,0.0001178,2]
[323569729,1714087868240,-500.0,0.0001178,2]
[323569730,1714087868250,-500.0,0.0001178,2]
[323569731,1714087868259,-500.0,0.0001178,2]
[323569732,1714087868269,-500.0,0.0001178,2]
[323569733,1714087868279,-500.0,0.0001178,2]
[323569734,1714087868288,-1261.63,0.0001178,2]
[323569735,1714087868298,-500.0,0.0001178,2]
[323569736,1714087868307,-570.44,0.0001178,2]
[323569737,1714087868317,-500.0,0.0001178,2]
[323569738,1714087868328,-500.0,0.0001178,2]
[323569739,1714087868339,-500.0,0.0001178,2]
[323569740,1714087868349,-500.0,0.0001178,2]
[323569741,1714087868359,-500.0,0.0001178,2]
[323569742,1714087868368,-500.0,0.0001178,2]
[323569743,1714087868377,-500.0,0.0001178,2]
[323569744,1714087868387,-500.0,0.0001178,2]
[323569745,1714087868397,-500.0,0.0001178,2]
[323569746,1714087868407,-500.0,0.0001178,2]
[323569747,1714087868419,-500.0,0.0001178,2]
[323569748,1714087868431,-500.0,0.0001178,2]
[323569749,1714087868442,-500.0,0.0001178,2]
[323569750,1714087868452,-500.0,0.0001178,2]
[323569751,1714087868463,-500.0,0.0001178,2]
[323569752,1714087868473,-500.0,0.0001178,2]
[323569753,1714087868483,-500.0,0.0001178,2]
[323569754,1714087868494,-1255.99,0.0001178,2]
[323569755,1714087868503,-500.0,0.0001178,2]
[323569756,1714087868514,-500.0,0.0001178,2]
[323569757,1714087868525,-500.0,0.0001178,2]
[323569758,1714087868534,-500.0,0.0001178,2]